{"text_format":"1","workbook":"xlsx","n_sheets":1,"sheets":["Foglio1"],"not_rendered":{"charts":0,"images":4,"macros":0,"external_links":0,"defined_names":0,"comments":0,"pivot_tables":0},"unopened":[],"bounds":{"document_bytes":16777216,"sheet_cells":100000,"rows_first":2000,"rows_last":500,"rows_between":2000,"halvings":0,"cell_chars":16384,"cell_head_chars":4096},"cells_cut":0,"cells_raw":0,"read":"whole","date_system":"1900"}

{"sheet":"Foglio1","index":0,"n_rows":65,"n_cols":46,"rows_kept":65,"cut":false,"hidden":false,"merged":[[12,26,12,28],[12,30,12,32],[1,9,1,25],[3,22,3,24],[12,18,12,20],[3,2,3,4],[3,6,3,8],[3,10,3,12],[3,14,3,16],[3,18,3,20],[12,2,12,4],[12,6,12,8],[12,10,12,12],[12,14,12,16],[12,22,12,24],[20,1,20,4],[3,34,3,36],[12,34,12,36],[45,36,45,45],[47,1,47,3],[34,18,34,20],[34,3,34,5],[22,2,22,4],[45,11,45,20],[45,1,45,6],[32,1,32,5],[33,24,33,33],[32,11,32,18],[45,24,45,33],[3,30,3,32],[3,26,3,28]]}
[null,null,null,null,null,null,"Classifica Assoluta Primi Posti Societa' 2023 - Master  Old Stars"]
[null,null,null,null,null,null,null,null,null,"XII°  TROFEO BANCA MEDIOLANUM"]
[null,null,null,null,null,null," "]
[null,null,"Temu",null,null,null,"Borno",null,null,null,"Borno",null,null,null,"Val Gerola",null,null,null,"Val Gerola",null,null,null,"Aprica",null,null,null,"Aprica",null,null,null,"Lizzola",null,null,null,"Lizzola"]
[null,"SOCIETA'","F","M","T",null,"F","M","T",null,"F","M","T",null,"F","M","T",null,"F","M","T",null,"F","M","T",null,"F","M","T",null,"F","M","T",null,"F","M","T"]
[]
[null,"G.S.A. Marinelli"]
[null,"S.C. Cernobbio",1,3,{"$f":"SUM(C8:D8)","v":4},null,1,2,{"$f":"SUM(G8:H8)","v":3},null,1,2,{"$f":"SUM(K8:L8)","v":3},null,2,1,{"$f":"SUM(O8:P8)","v":3},null,2,2,{"$f":"SUM(S8:T8)","v":4},null,3,2,{"$f":"SUM(W8:X8)","v":5},null,3,2,{"$f":"SUM(AA8:AB8)","v":5},null,2,2,{"$f":"SUM(AE8:AF8)","v":4},null,2,2,{"$f":"SUM(AI8:AJ8)","v":4}]
[null,"S.C. La Recastello",2,null,{"$f":"SUM(C9:D9)","v":2},null,2,1,{"$f":"SUM(G9:H9)","v":3},null,3,1,{"$f":"SUM(K9:L9)","v":4},null,1,1,{"$f":"SUM(O9:P9)","v":2},null,1,1,{"$f":"SUM(S9:T9)","v":2},null,1,1,{"$f":"SUM(W9:X9)","v":2},null,1,1,{"$f":"SUM(AA9:AB9)","v":2},null,null,2,{"$f":"SUM(AE9:AF9)","v":2},null,null,1,{"$f":"SUM(AI9:AJ9)","v":1}]
[null,"S.C. Ski Mountain",2,5,7,null,2,5,7,null,1,4,5,null,2,6,8,null,2,5,7,null,2,5,7,null,2,5,7,null,2,3,5,null,2,4,6]
[]
[]
[null,null,"Aprica",null,null,null,"Aprica",null,null,null,"Temù",null,null,null,"Chiesa ",null,null,null,"Chiesa",null,null,null,"Chiesa",null,null,null,"Tonale",null,null,null,"Tonale",null,null,null,"Totale"]
[null,null,"F","M","T",null,"F","M","T",null,"F","M","T",null,"F","M","T",null,"F","M","T",null,"F","M","T",null,"F","M","T",null,"F","M","T",null,"F","M","T"]
[]
[null,"G.S.A. Marinelli",null,null,null,null,null,null,null,null,null,null,null,null,null,null,null,null,null,null,null,null,null,null,null,null,null,null,null,null,null,null,null,null,{"$f":"C7+G7+K7+O7+S7+W7+AA7+AE7+AI7+C16+G16+K16+O16+S16+W16+AA16+AE16","v":0},{"$f":"D7+H7+L7+P7+T7+X7+AB7+AF7+AJ7+D16+H16+L16+P16+T16+X16+AB16+AF16","v":0},0]
[null,"S.C.Cernobbio",2,3,{"$f":"SUM(C17:D17)","v":5},null,1,3,{"$f":"SUM(G17:H17)","v":4},null,1,null,{"$f":"SUM(K17:L17)","v":1},null,2,1,{"$f":"SUM(O17:P17)","v":3},null,2,2,{"$f":"SUM(S17:T17)","v":4},null,2,3,{"$f":"SUM(W17:X17)","v":5},null,2,1,{"$f":"SUM(AA17:AB17)","v":3},null,2,null,{"$f":"SUM(AE17:AF17)","v":2},null,{"$f":"C8+G8+K8+O8+S8+W8+AA8+AE8+AI8+C17+G17+K17+O17+S17+W17+AA17+AE17","v":31},{"$f":"D8+H8+L8+P8+T8+X8+AB8+AF8+AJ8+D17+H17+L17+P17+T17+X17+AB17+AF17","v":31},62]
[null,"S.C. La Recastello",2,null,{"$f":"SUM(C18:D18)","v":2},null,2,null,{"$f":"SUM(G18:H18)","v":2},null,2,1,{"$f":"SUM(K18:L18)","v":3},null,1,1,{"$f":"SUM(O18:P18)","v":2},null,1,1,{"$f":"SUM(S18:T18)","v":2},null,1,1,{"$f":"SUM(W18:X18)","v":2},null,2,1,{"$f":"SUM(AA18:AB18)","v":3},null,2,1,{"$f":"SUM(AE18:AF18)","v":3},null,24,15,{"$f":"E9+I9+M9+Q9+U9+Y9+AC9+AG9+AK9+E18+I18+M18+Q18+U18+Y18+AC18+AG18","v":39}]
[null,"S.C. Ski Mountain",2,6,8,null,3,6,9,null,3,5,8,null,2,4,6,null,2,5,7,null,2,4,6,null,2,6,8,null,2,7,9,null,35,85,{"$f":"SUM(AI19:AJ19)","v":120}]
[]
[null,"Stagione 2013",null,null,null,null,null,null,"Stagione 2012",null,null,null,null,null,null,null,null,null,null,null,null,"Stagione 2011",null,null,null,null,null,null,null,null,null,null,"Stagione 2010"]
[]
[]
[]
[]
[]
[]
[]
[]
[]
[]
[]
[null,"Stagione 2014",null,null,null,null,null,null,null,null,null,"Stagione 2015"]
[null,null,null,null,null,null,null,null,null,null,null,null,null,null,null,null,null,null,null,null,null,null,null,null,"Stagione 2016",null,null,null,null,null,null,null,null,null,null,null,null,null,null,"Stagione 2017"]
[null,"Società",null,"Totale",null,null,null,null,null,null,null,null,"Società",null,null,null,null,null,"Totale"]
[null,null,null,"F","M","T",null,null,null,null,null,null,null,null,null,null,null,null,"F","M","T",null,null,null,null,"Società",null,null,null,null,null,null,"Totale",null,null,null,null,"Società",null,null,null,null,null,null,"Totale"]
[null,null,null,null,null,null,null,null,null,null,null,null,null,null,null,null,null,null,null,null,null,null,null,null,null,null,null,null,null,null,null,"F","M","T",null,null,null,null,null,null,null,null,null,"F","M","T"]
[null,"G.S.A. Marinelli",null,26,9,35,null,null,null,null,null,"G.S.A. Marinelli",null,null,null,null,null,null,15,2,17,null,null,null,"G.S.A. Marinelli",null,null,null,null,null,null,15,null,15]
[null,"S.C. Cernobbio",null,6,43,49,null,null,null,null,null,"S.C. Cernobbio",null,null,null,null,null,null,12,51,63,null,null,null,"S.C. Cernobbio",null,null,null,null,null,null,10,64,74,null,null,"G.S.A. Marinelli",null,null,null,null,null,null,15,null,15]
[null,"S.C. Due Effe Autocal.",null,7,1,8,null,null,null,null,null,"Punto Sport",null,null,null,null,null,null,18,12,30,null,null,null,"Punto Sport",null,null,null,null,null,null,16,3,19,null,null,"S.C. Cernobbio",null,null,null,null,null,null,11,44,55]
[null,"S.C. La Recastello",null,7,22,29,null,null,null,null,null,"S.C. La Recastello",null,null,null,null,null,null,9,29,38,null,null,null,"S.C. La Recastello",null,null,null,null,null,null,11,26,37,null,null,"S.C. La Recastello",null,null,null,null,null,null,35,45,80]
[null,"S.C. Ski Mountain",null,null,38,38,null,null,null,null,null,"S.C. Ski Mountain",null,null,null,null,null,null,1,10,11,null,null,null,"S.C. Ski Mountain",null,null,null,null,null,null,6,19,25,null,null,"S.C. Ski Mountain",null,null,null,null,null,null,5,28,33]
[null,"G.S.A. Sovere",null,15,null,15,null,null,null,null,null,"G.S.A. Sovere",null,null,null,null,null,null,4,null,4,null,null,null,"G.S.A. Sovere",null,null,null,null,null,null,1,null,1,null,null,"G.S.A. Sovere",null,null,null,null,null,null,0,null,0]
[null,null,null,null,null,null,null,null,null,null,null,null,null,null,null,null,null,null,null,null,null,null,null,null,"Parre",null,null,null,null,null,null,1,null,1,null,null,"Parre",null,null,null,null,null,null,0,null,0]
[]
[null,"Stagione 2018",null,null,null,null,null,null,null,null,null,"Stagione 2019",null,null,null,null,null,null,null,null,null,null,null,null,"Stagione 2020",null,null,null,null,null,null,null,null,null,null,null,"Stagione 2022"]
[]
[null,"Totale",null,null,null,null,null,null,null,null,null,null,"Società",null,null,null,null,null,null,"Totale",null,null,null,null,null,"Società",null,null,null,null,null,null,"Totale",null,null,null,null,"Società",null,null,null,null,null,null,"Totale"]
[null,null,null,null,"F","M","T",null,null,null,null,null,null,null,null,null,null,null,"F","M","T",null,null,null,null,null,null,null,null,null,null,"F","M","T",null,null,null,null,null,null,null,null,null,"F","M","T"]
[]
[null,"G.S.A. Marinelli",null,null,4,null,4,null,null,null,null,"G.S.A. Marinelli",null,null,null,null,null,null,6,null,{"$f":"SUM(S51:T51)","v":6},null,null,null,"G.S.A. Marinelli",null,null,null,null,null,null,8,null,{"$f":"SUM(AF51:AG51)","v":8},null,null,"G.S.A. Marinelli",null,null,null,null,null,null,3,null,{"$f":"SUM(AR51:AS51)","v":3}]
[null,"S.C. Cernobbio",null,null,23,64,{"$f":"SUM(E52:F52)","v":87},null,null,null,null,"S.C. Cernobbio",null,null,null,null,null,null,19,52,{"$f":"SUM(S52:T52)","v":71},null,null,null,"S.C. Cernobbio",null,null,null,null,null,null,25,50,{"$f":"SUM(AF52:AG52)","v":75},null,null,"S.C. Cernobbio",null,null,null,null,null,null,1,22,23]
[null,"S.C. La Recastello",null,null,35,40,{"$f":"SUM(E53:F53)","v":75},null,null,null,null,"S.C. La Recastello",null,null,null,null,null,null,26,49,{"$f":"SUM(S53:T53)","v":75},null,null,null,"S.C. La Recastello",null,null,null,null,null,null,22,20,{"$f":"SUM(AF53:AG53)","v":42},null,null,"S.C. La Recastello",null,null,null,null,null,null,48,26,{"$f":"SUM(AR53:AS53)","v":74}]
[null,"S.C. Ski Mountain",null,null,3,9,{"$f":"SUM(E54:F54)","v":12},null,null,null,null,"S.C. Ski Mountain",null,null,null,null,null,null,9,16,{"$f":"SUM(S54:T54)","v":25},null,null,null,"S.C. Ski Mountain",null,null,null,null,null,null,1,34,{"$f":"SUM(AF54:AG54)","v":35},null,null,"S.C. Ski Mountain",null,null,null,null,null,null,22,66,88]
[]
[]
[null,"Stagione 2023"]
[]
[null,null,"Società",null,null,"Totale"]
[null,null,null,null,"F","M","T"]
[]
[null,"G.S.A. Marinelli",null,null,{"$f":"AI16","v":0},{"$f":"AJ16","v":0},{"$f":"AK16","v":0}]
[null,"S.C. Cernobbio",null,null,{"$f":"AI17","v":31},31,{"$f":"E63+F63","v":62}]
[null,"S.C. La Recastello",null,null,{"$f":"AI18","v":24},15,{"$f":"E64+F64","v":39}]
[null,"S.C. Ski Mountain",null,null,{"$f":"AI19","v":35},85,120]